[Event "14th Vandoeuvre Open 2018"]
[Site "?"]
[Date "2018.01.03"]
[Round "4"]
[White "Fedorchuk, Sergey A"]
[Black "Doluhanova, Evgeniya"]
[Result "1-0"]
[ECO "B90"]
[WhiteElo "2638"]
[BlackElo "2342"]
[PlyCount "41"]
[EventDate "2018.??.??"]
[EventType "swiss"]
[EventCountry "FRA"]
[SourceTitle "Vandoeuvre"]
[TimeControl "5400+30"]
[WhiteClock "0:47:28"]
[BlackClock "0:59:13"]

1. e4 {[%emt 0:00:00]} c5 {[%emt 0:00:00]} 2. Nf3 {[%emt 0:00:18]} d6 {[%emt 0:00:00]} 3. d4 {[%emt 0:00:22]} cxd4 {[%emt 0:00:00]} 4. Nxd4 {[%emt 0:00:33]} Nf6 {[%emt 0:00:00]} 5. Nc3 {[%emt 0:00:07]} a6 {[%emt 0:00:00]} 6. h3 {[%emt 0:00:29]} e5 {[%emt 0:00:08]} 7. Nde2 {[%emt 0:00:08]} h5 {[%emt 0:00:17]} 8. g3 {[%emt 0:00:10]} Be6 {[%emt 0:02:23]} 9. Bg2 {[%emt 0:00:17]} Nbd7 {[%emt 0:00:09]} 10. a4 {[%emt 0:04:07]} Be7 {[%emt 0:01:54]} 11. Be3 {[%emt 0:01:26]} Rb8 {[%emt 0:02:19]} 12. a5 {[%emt 0:04:01]} b5 {[%emt 0:10:23]} 13. axb6 {[%emt 0:01:21]} Nxb6 {[%emt 0:00:08]} 14. b3 {[%emt 0:01:01]} Qc8 {[%emt 0:05:26]} 15. Qd3 {[%emt 0:05:20]} O-O {[%emt 0:02:07]} 16. Qxa6 {[%emt 0:10:02]} Qc7 {[%emt 0:05:03]} 17. Qd3 {[%emt 0:02:22]} Qc8 {[%emt 0:00:48]} 18. Ra7 {[%emt 0:00:28]} Nfd7 {[%emt 0:17:36]} 19. O-O {[%emt 0:02:29]} Rd8 {[%emt 0:02:12]} 20. Nd5 {[%emt 0:04:39]} Bf8 {[%emt 0:01:39]} 21. Rc7 {[%emt 0:01:37]} 1-0

[Event "14th Vandoeuvre Open 2018"]
[Site "?"]
[Date "2018.01.03"]
[Round "4"]
[White "Mu, Ke"]
[Black "Kryakvin, Dmitry"]
[Result "1/2-1/2"]
[ECO "A37"]
[WhiteElo "2436"]
[BlackElo "2580"]
[PlyCount "67"]
[EventDate "2018.??.??"]
[EventType "swiss"]
[EventCountry "FRA"]
[SourceTitle "Vandoeuvre"]
[TimeControl "5400+30"]
[WhiteClock "0:36:41"]
[BlackClock "0:30:54"]

1. c4 {[%emt 0:03:39]} c5 {[%emt 0:00:21]} 2. g3 {[%emt 0:00:11]} Nc6 {[%emt 0:00:17]} 3. Bg2 {[%emt 0:00:06]} g6 {[%emt 0:00:05]} 4. Nc3 {[%emt 0:00:16]} Bg7 {[%emt 0:00:06]} 5. Nf3 {[%emt 0:00:15]} e6 {[%emt 0:00:15]} 6. O-O {[%emt 0:00:42]} Nge7 {[%emt 0:01:37]} 7. d4 {[%emt 0:05:48]} cxd4 {[%emt 0:11:26]} 8. Nb5 {[%emt 0:00:22]} d5 {[%emt 0:02:20]} 9. cxd5 {[%emt 0:00:07]} Nxd5 {[%emt 0:00:32]} 10. Nfxd4 {[%emt 0:02:47]} O-O {[%emt 0:03:53]} 11. e4 {[%emt 0:07:07]} Ndb4 {[%emt 0:07:34]} 12. Be3 {[%emt 0:00:23]} Bd7 {[%emt 0:00:18]} 13. Qb3 {[%emt 0:09:36]} Nxd4 {[%emt 0:19:46]} 14. Nxd4 {[%emt 0:00:08]} Qa5 {[%emt 0:01:07]} 15. Bd2 {[%emt 0:00:41]} Bxd4 {[%emt 0:03:05]} 16. Bxb4 {[%emt 0:02:04]} Qb6 {[%emt 0:00:10]} 17. Bxf8 {[%emt 0:00:50]} Rxf8 {[%emt 0:01:27]} 18. Qxb6 {[%emt 0:07:47]} axb6 {[%emt 0:00:05]} 19. e5 {[%emt 0:00:55]} Bxe5 {[%emt 0:01:06]} 20. Bxb7 {[%emt 0:03:51]} Bxb2 {[%emt 0:02:00]} 21. Rad1 {[%emt 0:02:00]} Bb5 {[%emt 0:02:39]} 22. Rfe1 {[%emt 0:00:08]} Bc3 {[%emt 0:02:19]} 23. Re3 {[%emt 0:00:42]} Ba5 {[%emt 0:00:04]} 24. a3 {[%emt 0:11:02]} Rb8 {[%emt 0:00:45]} 25. Bf3 {[%emt 0:00:05]} Rc8 {[%emt 0:00:52]} 26. Be2 {[%emt 0:00:30]} Ba4 {[%emt 0:01:29]} 27. Rd6 {[%emt 0:02:06]} Kf8 {[%emt 0:01:51]} 28. Rd4 {[%emt 0:02:04]} Rc1+ {[%emt 0:01:18]} 29. Kg2 {[%emt 0:00:26]} Bc6+ {[%emt 0:00:08]} 30. Bf3 {[%emt 0:00:14]} Bb5 {[%emt 0:00:14]} 31. Be2 {[%emt 0:08:29]} Bc6+ {[%emt 0:00:29]} 32. Bf3 {[%emt 0:00:07]} Bb5 {[%emt 0:00:04]} 33. Be2 {[%emt 0:00:08]} Bc6+ {[%emt 0:00:07]} 34. Bf3 1/2-1/2

[Event "14th Vandoeuvre Open 2018"]
[Site "?"]
[Date "2018.01.03"]
[Round "4"]
[White "Keymer, Vincent"]
[Black "Lin, Chen"]
[Result "1/2-1/2"]
[ECO "D15"]
[WhiteElo "2408"]
[BlackElo "2485"]
[PlyCount "80"]
[EventDate "2018.??.??"]
[EventType "swiss"]
[EventCountry "FRA"]
[SourceTitle "Vandoeuvre"]
[TimeControl "5400+30"]
[WhiteClock "0:19:15"]
[BlackClock "0:27:04"]

1. d4 {[%emt 0:00:00]} d5 {[%emt 0:03:32]} 2. c4 {[%emt 0:00:00]} c6 {[%emt 0:00:06]} 3. Nf3 {[%emt 0:00:00]} Nf6 {[%emt 0:00:08]} 4. Nc3 {[%emt 0:00:00]} a6 {[%emt 0:00:08]} 5. e3 {[%emt 0:00:09]} Bf5 {[%emt 0:00:10]} 6. Qb3 {[%emt 0:00:05]} Ra7 {[%emt 0:00:34]} 7. Bd2 {[%emt 0:03:18]} e6 {[%emt 0:00:33]} 8. Nh4 {[%emt 0:02:19]} Be4 {[%emt 0:01:03]} 9. f3 {[%emt 0:00:38]} dxc4 {[%emt 0:02:35]} 10. Qxc4 {[%emt 0:07:25]} Bd5 {[%emt 0:02:42]} 11. Nxd5 {[%emt 0:02:16]} cxd5 {[%emt 0:09:06]} 12. Qa4+ {[%emt 0:00:25]} Nc6 {[%emt 0:00:40]} 13. g3 {[%emt 0:00:48]} Be7 {[%emt 0:00:45]} 14. Ng2 {[%emt 0:01:57]} O-O {[%emt 0:00:51]} 15. Be2 {[%emt 0:00:05]} b5 {[%emt 0:08:37]} 16. Qd1 {[%emt 0:00:27]} Qb6 {[%emt 0:02:36]} 17. O-O {[%emt 0:08:29]} Rc7 {[%emt 0:08:03]} 18. Rc1 {[%emt 0:08:31]} Rfc8 {[%emt 0:00:08]} 19. Kh1 {[%emt 0:01:23]} Bd6 {[%emt 0:07:08]} 20. Qe1 {[%emt 0:07:06]} b4 {[%emt 0:03:07]} 21. Nf4 {[%emt 0:07:51]} e5 {[%emt 0:05:16]} 22. dxe5 {[%emt 0:01:07]} Nxe5 {[%emt 0:00:07]} 23. Rxc7 {[%emt 0:04:33]} Rxc7 {[%emt 0:00:26]} 24. Nd3 {[%emt 0:01:43]} Nc4 {[%emt 0:12:18]} 25. Bxb4 {[%emt 0:02:14]} Bxb4 {[%emt 0:00:06]} 26. Qxb4 {[%emt 0:01:48]} Qxb4 {[%emt 0:00:09]} 27. Nxb4 {[%emt 0:00:04]} Nxe3 {[%emt 0:00:05]} 28. Re1 {[%emt 0:07:19]} a5 {[%emt 0:00:28]} 29. Bb5 {[%emt 0:01:57]} axb4 {[%emt 0:07:50]} 30. Rxe3 {[%emt 0:00:12]} d4 {[%emt 0:07:26]} 31. Rd3 {[%emt 0:04:31]} Rc1+ {[%emt 0:00:29]} 32. Kg2 {[%emt 0:00:06]} Rc2+ {[%emt 0:00:05]} 33. Kg1 {[%emt 0:01:31]} Rc1+ {[%emt 0:02:13]} 34. Kf2 {[%emt 0:00:13]} Rc2+ {[%emt 0:00:05]} 35. Ke1 {[%emt 0:00:40]} Rxb2 {[%emt 0:00:07]} 36. Rxd4 {[%emt 0:00:03]} g5 {[%emt 0:00:37]} 37. Rd2 {[%emt 0:01:32]} Rb1+ {[%emt 0:00:16]} 38. Rd1 {[%emt 0:00:04]} Rb2 {[%emt 0:00:04]} 39. Rd2 {[%emt 0:00:03]} Rb1+ {[%emt 0:00:03]} 40. Rd1 {[%emt 0:00:04]} Rb2 {[%emt 0:00:03]} 1/2-1/2

[Event "14th Vandoeuvre Open 2018"]
[Site "?"]
[Date "2018.01.03"]
[Round "4"]
[White "Tay, Shi Hao"]
[Black "Riou Durand, Lionel"]
[Result "0-1"]
[ECO "C05"]
[WhiteElo "2038"]
[BlackElo "1898"]
[PlyCount "94"]
[EventDate "2018.??.??"]
[EventType "swiss"]
[EventCountry "FRA"]
[SourceTitle "Vandoeuvre"]
[TimeControl "5400+30"]
[WhiteClock "0:02:57"]
[BlackClock "0:01:07"]

1. e4 {[%emt 0:03:19]} e6 {[%emt 0:00:00]} 2. d4 {[%emt 0:00:43]} d5 {[%emt 0:00:00]} 3. Nd2 {[%emt 0:00:33]} Nf6 {[%emt 0:00:00]} 4. e5 {[%emt 0:00:40]} Nfd7 {[%emt 0:00:11]} 5. f4 {[%emt 0:00:13]} c5 {[%emt 0:00:47]} 6. c3 {[%emt 0:00:13]} Nc6 {[%emt 0:00:36]} 7. Ndf3 {[%emt 0:00:11]} cxd4 {[%emt 0:01:47]} 8. cxd4 {[%emt 0:01:25]} Nb6 {[%emt 0:03:21]} 9. Ne2 {[%emt 0:01:52]} Bd7 {[%emt 0:01:50]} 10. g3 {[%emt 0:00:29]} a5 {[%emt 0:01:11]} 11. Bh3 {[%emt 0:00:48]} a4 {[%emt 0:03:04]} 12. O-O {[%emt 0:00:52]} g6 {[%emt 0:05:26]} 13. g4 {[%emt 0:07:54]} h5 {[%emt 0:00:14]} 14. Ng5 {[%emt 0:04:01]} hxg4 {[%emt 0:05:27]} 15. Bxg4 {[%emt 0:02:05]} Nc4 {[%emt 0:01:27]} 16. Qd3 {[%emt 0:17:09]} Nb4 {[%emt 0:17:07]} 17. Qg3 {[%emt 0:06:57]} Qb6 {[%emt 0:05:50]} 18. Qf2 {[%emt 0:29:51]} Nd3 {[%emt 0:10:38]} 19. Qf3 {[%emt 0:02:57]} Ndxb2 {[%emt 0:04:16]} 20. Bxb2 {[%emt 0:05:09]} Nxb2 {[%emt 0:00:32]} 21. f5 {[%emt 0:00:34]} gxf5 {[%emt 0:01:29]} 22. Bh5 {[%emt 0:00:43]} O-O-O {[%emt 0:07:26]} 23. Nxf7 {[%emt 0:00:52]} Rxh5 {[%emt 0:07:43]} 24. Qxh5 {[%emt 0:00:20]} Be8 {[%emt 0:00:05]} 25. Rfc1+ {[%emt 0:03:51]} Nc4 {[%emt 0:02:13]} 26. Rab1 {[%emt 0:02:20]} Qc7 {[%emt 0:01:03]} 27. Nd6+ {[%emt 0:05:05]} Bxd6 {[%emt 0:00:07]} 28. Qh6 {[%emt 0:00:20]} Ba3 {[%emt 0:02:28]} 29. Rc3 {[%emt 0:00:48]} Bd7 {[%emt 0:03:08]} 30. Kh1 {[%emt 0:00:26]} Re8 {[%emt 0:02:55]} 31. Nf4 {[%emt 0:01:05]} Kb8 {[%emt 0:01:14]} 32. Nh5 {[%emt 0:00:53]} Qa5 {[%emt 0:01:13]} 33. Rc2 {[%emt 0:00:31]} Be7 {[%emt 0:04:31]} 34. Nf6 {[%emt 0:00:55]} Bxf6 {[%emt 0:02:42]} 35. exf6 {[%emt 0:00:01]} Qd8 {[%emt 0:00:54]} 36. Rg1 {[%emt 0:00:27]} Rf8 {[%emt 0:00:35]} 37. Rg6 {[%emt 0:00:26]} Nd6 {[%emt 0:00:59]} 38. Qf4 {[%emt 0:00:43]} Qb6 {[%emt 0:01:21]} 39. Rc1 {[%emt 0:00:33]} Ka7 {[%emt 0:00:27]} 40. Rg7 {[%emt 0:00:41]} Bb5 {[%emt 0:01:40]} 41. Rg6 {[%emt 0:00:41]} Ne4 {[%emt 0:00:45]} 42. Qe5 {[%emt 0:00:26]} Nf2+ {[%emt 0:00:16]} 43. Kg2 {[%emt 0:00:15]} Nd3 {[%emt 0:00:14]} 44. Qc7 {[%emt 0:01:09]} Qxc7 {[%emt 0:00:27]} 45. Rxc7 {[%emt 0:00:05]} Nf4+ {[%emt 0:00:05]} 46. Kf3 {[%emt 0:00:09]} Nxg6 {[%emt 0:00:06]} 47. f7 {[%emt 0:00:43]} Kb6 {[%emt 0:00:43]} 0-1

[Event "14th Vandoeuvre Open 2018"]
[Site "?"]
[Date "2018.01.03"]
[Round "4"]
[White "Pillard, Valentin"]
[Black "Faivre, Pierre Alix"]
[Result "1/2-1/2"]
[ECO "E71"]
[WhiteElo "1967"]
[BlackElo "1742"]
[PlyCount "78"]
[EventDate "2018.??.??"]
[EventType "swiss"]
[EventCountry "FRA"]
[SourceTitle "Vandoeuvre"]
[TimeControl "5400+30"]
[WhiteClock "0:02:40"]
[BlackClock "0:30:20"]

1. d4 {[%emt 0:00:00]} Nf6 {[%emt 0:00:00]} 2. c4 {[%emt 0:00:00]} g6 {[%emt 0:00:31]} 3. Nc3 {[%emt 0:00:00]} Bg7 {[%emt 0:00:51]} 4. e4 {[%emt 0:00:00]} d6 {[%emt 0:00:12]} 5. h3 {[%emt 0:00:31]} O-O {[%emt 0:01:24]} 6. Bg5 {[%emt 0:01:42]} Nbd7 {[%emt 0:12:02]} 7. Qd2 {[%emt 0:01:19]} c5 {[%emt 0:04:28]} 8. d5 {[%emt 0:00:42]} Qc7 {[%emt 0:08:46]} 9. Rd1 {[%emt 0:02:16]} a6 {[%emt 0:05:49]} 10. a4 {[%emt 0:00:54]} b6 {[%emt 0:00:58]} 11. Be2 {[%emt 0:04:18]} Bb7 {[%emt 0:00:43]} 12. h4 {[%emt 0:00:30]} h5 {[%emt 0:01:44]} 13. f3 {[%emt 0:10:33]} Ne5 {[%emt 0:01:22]} 14. Nh3 {[%emt 0:00:51]} Rfe8 {[%emt 0:01:17]} 15. f4 {[%emt 0:01:18]} Neg4 {[%emt 0:00:53]} 16. f5 {[%emt 0:00:07]} Kh7 {[%emt 0:23:16]} 17. fxg6+ {[%emt 0:00:56]} fxg6 {[%emt 0:00:11]} 18. Nf4 {[%emt 0:05:53]} Bc8 {[%emt 0:00:22]} 19. Ne6 {[%emt 0:01:22]} Bxe6 {[%emt 0:00:36]} 20. dxe6 {[%emt 0:00:01]} Ne5 {[%emt 0:04:29]} 21. O-O {[%emt 0:03:08]} Qc8 {[%emt 0:07:40]} 22. Bxf6 {[%emt 0:01:52]} exf6 {[%emt 0:02:06]} 23. e7 {[%emt 0:13:22]} Qe6 {[%emt 0:12:03]} 24. Nd5 {[%emt 0:00:17]} Ra7 {[%emt 0:01:14]} 25. Nxb6 {[%emt 0:04:51]} Rb7 {[%emt 0:02:28]} 26. Nd5 {[%emt 0:00:43]} Nc6 {[%emt 0:02:18]} 27. Qf4 {[%emt 0:07:22]} f5 {[%emt 0:03:35]} 28. exf5 {[%emt 0:01:24]} Qxe2 {[%emt 0:00:57]} 29. f6 {[%emt 0:01:41]} Bh6 {[%emt 0:01:32]} 30. Qxd6 {[%emt 0:00:36]} Nxe7 {[%emt 0:00:35]} 31. fxe7 {[%emt 0:00:39]} Rxb2 {[%emt 0:00:13]} 32. Rf7+ {[%emt 0:05:30]} Bg7 {[%emt 0:00:01]} 33. Rxg7+ {[%emt 0:00:07]} Kh8 {[%emt 0:00:40]} 34. Qxg6 {[%emt 0:03:21]} Qf2+ {[%emt 0:00:16]} 35. Kh1 {[%emt 0:00:48]} Qxh4+ {[%emt 0:00:11]} 36. Kg1 {[%emt 0:00:04]} Qf2+ {[%emt 0:00:29]} 37. Kh1 {[%emt 0:00:02]} Qh4+ {[%emt 0:00:10]} 38. Kg1 {[%emt 0:00:00]} Qf2+ {[%emt 0:00:19]} 39. Kh1 {[%emt 0:00:10]} Qh4+ {[%emt 0:00:09]} 1/2-1/2

[Event "14th Vandoeuvre Open 2018"]
[Site "?"]
[Date "2018.01.03"]
[Round "4"]
[White "Roussey, Quentin"]
[Black "Hornet, Nicolas"]
[Result "0-1"]
[ECO "B01"]
[WhiteElo "1966"]
[BlackElo "1633"]
[PlyCount "76"]
[EventDate "2018.??.??"]
[EventType "swiss"]
[EventCountry "FRA"]
[SourceTitle "Vandoeuvre"]
[TimeControl "5400+30"]
[WhiteClock "1:00:04"]
[BlackClock "0:02:33"]

1. e4 {[%emt 0:00:00]} d5 {[%emt 0:00:00]} 2. exd5 {[%emt 0:00:07]} Nf6 {[%emt 0:00:00]} 3. d4 {[%emt 0:02:48]} Bg4 {[%emt 0:00:32]} 4. Bb5+ {[%emt 0:08:37]} Nbd7 {[%emt 0:00:56]} 5. f3 {[%emt 0:01:03]} Bf5 {[%emt 0:00:05]} 6. c4 {[%emt 0:00:56]} a6 {[%emt 0:00:07]} 7. Bxd7+ {[%emt 0:03:29]} Qxd7 {[%emt 0:00:02]} 8. Ne2 {[%emt 0:08:42]} e6 {[%emt 0:00:30]} 9. dxe6 {[%emt 0:02:17]} Qxe6 {[%emt 0:00:06]} 10. Qa4+ {[%emt 0:03:22]} Nd7 {[%emt 0:03:27]} 11. Nbc3 {[%emt 0:06:54]} O-O-O {[%emt 0:01:50]} 12. c5 {[%emt 0:16:57]} Bxc5 {[%emt 0:10:27]} 13. dxc5 {[%emt 0:05:34]} Nxc5 {[%emt 0:00:38]} 14. Qa5 {[%emt 0:10:45]} Nd3+ {[%emt 0:00:59]} 15. Kf1 {[%emt 0:00:13]} Rhe8 {[%emt 0:06:14]} 16. Bf4 {[%emt 0:12:51]} Nxf4 {[%emt 0:00:50]} 17. Nxf4 {[%emt 0:00:11]} Qc4+ {[%emt 0:00:29]} 18. Nce2 {[%emt 0:06:56]} Bd3 {[%emt 0:03:22]} 19. Nxd3 {[%emt 0:00:32]} Qxd3 {[%emt 0:02:50]} 20. Re1 {[%emt 0:00:10]} Qe3 {[%emt 0:02:41]} 21. Qc3 {[%emt 0:03:07]} Rd3 {[%emt 0:00:43]} 22. Qxg7 {[%emt 0:03:44]} Rd1 {[%emt 0:02:02]} 23. Qg4+ {[%emt 0:01:17]} Kb8 {[%emt 0:00:37]} 24. f4 {[%emt 0:00:10]} Rxe1+ {[%emt 0:00:45]} 25. Kxe1 {[%emt 0:00:02]} Qc1+ {[%emt 0:00:08]} 26. Kf2 {[%emt 0:00:20]} Qxh1 {[%emt 0:01:03]} 27. h3 {[%emt 0:01:53]} Qd1 {[%emt 0:01:13]} 28. Qf3 {[%emt 0:00:30]} Qc2 {[%emt 0:01:03]} 29. Kf1 {[%emt 0:00:32]} Qb1+ {[%emt 0:00:28]} 30. Kf2 {[%emt 0:00:04]} Qxb2 {[%emt 0:00:10]} 31. a3 {[%emt 0:00:14]} c5 {[%emt 0:00:37]} 32. Qd3 {[%emt 0:00:41]} Kc7 {[%emt 0:01:06]} 33. Kf3 {[%emt 0:00:22]} Rxe2 {[%emt 0:01:11]} 34. Qxe2 {[%emt 0:00:12]} Qxe2+ 35. Kxe2 {[%emt 0:00:06]} Kd6 {[%emt 0:00:39]} 36. Kd3 {[%emt 0:00:19]} Kd5 {[%emt 0:00:39]} 37. g4 {[%emt 0:00:19]} c4+ {[%emt 0:00:12]} 38. Kc3 {[%emt 0:00:11]} b5 {[%emt 0:00:15]} 0-1

[Event "14th Vandoeuvre Open 2018"]
[Site "?"]
[Date "2018.01.03"]
[Round "4"]
[White "Rauta, Nicolas"]
[Black "Pavee, Louis"]
[Result "1-0"]
[ECO "A25"]
[WhiteElo "1963"]
[BlackElo "1740"]
[PlyCount "137"]
[EventDate "2018.??.??"]
[EventType "swiss"]
[EventCountry "FRA"]
[SourceTitle "Vandoeuvre"]
[TimeControl "5400+30"]
[WhiteClock "0:33:41"]
[BlackClock "0:01:57"]

1. c4 {[%emt 0:00:00]} e5 {[%emt 0:00:11]} 2. Nc3 {[%emt 0:00:00]} Nc6 {[%emt 0:00:34]} 3. g3 {[%emt 0:00:08]} Bc5 {[%emt 0:00:11]} 4. Bg2 {[%emt 0:00:26]} f5 {[%emt 0:00:56]} 5. e3 {[%emt 0:01:20]} Nf6 {[%emt 0:00:42]} 6. Nge2 {[%emt 0:00:19]} d6 {[%emt 0:00:19]} 7. a3 {[%emt 0:01:17]} a5 {[%emt 0:04:29]} 8. O-O {[%emt 0:02:18]} O-O {[%emt 0:00:09]} 9. d4 {[%emt 0:01:40]} Bb6 {[%emt 0:04:07]} 10. b3 {[%emt 0:02:34]} Qe7 {[%emt 0:05:57]} 11. Bb2 {[%emt 0:03:27]} Kh8 {[%emt 0:04:21]} 12. Rc1 {[%emt 0:08:12]} Nd8 {[%emt 0:08:58]} 13. b4 {[%emt 0:21:07]} c6 {[%emt 0:01:30]} 14. Na4 {[%emt 0:20:08]} Bc7 {[%emt 0:01:33]} 15. b5 {[%emt 0:03:09]} Bd7 {[%emt 0:04:19]} 16. Nac3 {[%emt 0:02:08]} e4 {[%emt 0:09:00]} 17. a4 {[%emt 0:00:45]} d5 {[%emt 0:00:44]} 18. cxd5 {[%emt 0:00:17]} cxd5 {[%emt 0:00:10]} 19. Nxe4 {[%emt 0:02:43]} fxe4 {[%emt 0:00:54]} 20. Rxc7 {[%emt 0:00:13]} Rc8 {[%emt 0:01:23]} 21. Rxc8 {[%emt 0:00:10]} Bxc8 {[%emt 0:00:25]} 22. Qb3 {[%emt 0:00:11]} Nf7 {[%emt 0:04:47]} 23. Nf4 {[%emt 0:02:04]} Be6 {[%emt 0:02:21]} 24. Rc1 {[%emt 0:04:46]} Qd7 {[%emt 0:03:30]} 25. Qc3 {[%emt 0:07:50]} Nd6 {[%emt 0:00:53]} 26. Qc7 {[%emt 0:06:50]} Nc4 {[%emt 0:03:13]} 27. Qxd7 {[%emt 0:00:42]} Bxd7 {[%emt 0:00:10]} 28. Ba1 {[%emt 0:00:58]} Rc8 {[%emt 0:01:04]} 29. Bf1 {[%emt 0:01:54]} Nb6 {[%emt 0:00:18]} 30. Rxc8+ {[%emt 0:00:41]} Bxc8 {[%emt 0:00:10]} 31. Bc3 {[%emt 0:00:11]} Nxa4 {[%emt 0:00:40]} 32. Bxa5 {[%emt 0:00:11]} Bd7 {[%emt 0:00:06]} 33. Bd8 {[%emt 0:00:23]} Nc3 {[%emt 0:00:23]} 34. Bxf6 {[%emt 0:05:47]} gxf6 {[%emt 0:02:12]} 35. Nh5 {[%emt 0:00:06]} Bxb5 {[%emt 0:00:26]} 36. Bxb5 {[%emt 0:00:10]} Nxb5 {[%emt 0:00:09]} 37. Nxf6 {[%emt 0:00:04]} Nc3 {[%emt 0:00:10]} 38. Nd7 {[%emt 0:00:23]} b5 {[%emt 0:00:23]} 39. Nc5 {[%emt 0:00:06]} Kg7 {[%emt 0:00:37]} 40. Kf1 {[%emt 0:00:22]} Kf7 {[%emt 0:01:11]} 41. Ke1 {[%emt 0:00:10]} Ke7 {[%emt 0:00:14]} 42. Kd2 {[%emt 0:00:19]} Na2 {[%emt 0:00:40]} 43. Na6 {[%emt 0:01:46]} b4 {[%emt 0:01:24]} 44. Kc2 {[%emt 0:00:28]} Kf6 {[%emt 0:00:27]} 45. Kb3 {[%emt 0:00:37]} Nc1+ {[%emt 0:00:11]} 46. Kxb4 {[%emt 0:01:51]} Nd3+ {[%emt 0:00:08]} 47. Kc3 {[%emt 0:00:17]} Nxf2 {[%emt 0:00:17]} 48. Kd2 {[%emt 0:01:00]} Ke6 {[%emt 0:00:42]} 49. Nc5+ {[%emt 0:00:07]} Kd6 {[%emt 0:00:10]} 50. Ke2 {[%emt 0:00:14]} Ng4 {[%emt 0:00:17]} 51. h3 Nh2 {[%emt 0:00:46]} 52. Kf2 {[%emt 0:00:51]} h5 {[%emt 0:01:07]} 53. Nb3 {[%emt 0:01:29]} Nf3 {[%emt 0:00:23]} 54. Nc1 {[%emt 0:00:13]} h4 {[%emt 0:00:56]} 55. gxh4 {[%emt 0:00:16]} Nxh4 {[%emt 0:00:07]} 56. Ne2 {[%emt 0:00:05]} Nf3 {[%emt 0:00:29]} 57. Nf4 {[%emt 0:00:22]} Nh4 {[%emt 0:02:11]} 58. Ng2 {[%emt 0:00:39]} Nf5 {[%emt 0:00:31]} 59. h4 {[%emt 0:00:25]} Kc6 {[%emt 0:00:42]} 60. Kg1 {[%emt 0:01:31]} Kb5 {[%emt 0:00:46]} 61. h5 {[%emt 0:00:44]} Kc6 {[%emt 0:00:30]} 62. Kh2 {[%emt 0:00:21]} Kd6 {[%emt 0:00:09]} 63. Kh3 {[%emt 0:00:10]} Ke6 {[%emt 0:00:05]} 64. Kg4 {[%emt 0:00:54]} Kf6 {[%emt 0:00:40]} 65. Kf4 {[%emt 0:00:37]} Ng7 {[%emt 0:02:28]} 66. h6 {[%emt 0:00:38]} Ne6+ {[%emt 0:00:04]} 67. Kg4 {[%emt 0:00:10]} Kg6 {[%emt 0:00:10]} 68. Nf4+ {[%emt 0:00:16]} Nxf4 {[%emt 0:00:10]} 69. Kxf4 {[%emt 0:00:03]} 1-0

[Event "14th Vandoeuvre Open 2018"]
[Site "?"]
[Date "2018.01.03"]
[Round "4"]
[White "Steininger, Denis"]
[Black "El Barbry, Sarah"]
[Result "1-0"]
[ECO "C18"]
[WhiteElo "1957"]
[BlackElo "1805"]
[PlyCount "117"]
[EventDate "2018.??.??"]
[EventType "swiss"]
[EventCountry "FRA"]
[SourceTitle "Vandoeuvre"]
[TimeControl "5400+30"]
[WhiteClock "0:01:06"]
[BlackClock "1:14:25"]

1. e4 {[%emt 0:00:00]} e6 {[%emt 0:20:35]} 2. d4 {[%emt 0:00:00]} d5 {[%emt 0:00:04]} 3. Nc3 {[%emt 0:00:00]} Bb4 {[%emt 0:00:05]} 4. e5 {[%emt 0:00:01]} c5 {[%emt 0:00:05]} 5. a3 {[%emt 0:00:04]} Bxc3+ {[%emt 0:00:03]} 6. bxc3 {[%emt 0:00:09]} Qc7 {[%emt 0:00:03]} 7. Nf3 {[%emt 0:00:58]} Nc6 {[%emt 0:01:02]} 8. a4 {[%emt 0:00:07]} Nge7 {[%emt 0:00:48]} 9. Ba3 {[%emt 0:00:22]} Qa5 {[%emt 0:01:40]} 10. Qd2 {[%emt 0:00:55]} cxd4 {[%emt 0:12:16]} 11. Nxd4 {[%emt 0:01:31]} Nxd4 {[%emt 0:03:05]} 12. Qxd4 {[%emt 0:00:44]} Nc6 {[%emt 0:03:20]} 13. Bb5 {[%emt 0:03:18]} Qxb5 {[%emt 0:04:19]} 14. axb5 {[%emt 0:00:08]} Nxd4 {[%emt 0:00:04]} 15. cxd4 {[%emt 0:00:07]} Bd7 {[%emt 0:01:07]} 16. Bc5 {[%emt 0:00:55]} Bxb5 {[%emt 0:16:30]} 17. Rxa7 {[%emt 0:00:12]} Rxa7 {[%emt 0:00:20]} 18. Bxa7 {[%emt 0:00:07]} Kd7 {[%emt 0:00:10]} 19. Kd2 {[%emt 0:00:16]} Ra8 {[%emt 0:00:12]} 20. Bc5 {[%emt 0:01:03]} Bc4 {[%emt 0:06:17]} 21. g4 {[%emt 0:00:18]} h6 {[%emt 0:05:10]} 22. h4 {[%emt 0:00:46]} g6 {[%emt 0:00:58]} 23. f4 {[%emt 0:00:14]} Rh8 {[%emt 0:01:43]} 24. h5 {[%emt 0:02:46]} gxh5 {[%emt 0:04:04]} 25. Rxh5 {[%emt 0:00:14]} Rg8 {[%emt 0:04:38]} 26. Rh4 {[%emt 0:00:02]} Bf1 {[%emt 0:08:39]} 27. Ke3 {[%emt 0:00:21]} Bg2 {[%emt 0:03:08]} 28. c3 {[%emt 0:00:24]} Be4 {[%emt 0:00:49]} 29. c4 {[%emt 0:01:36]} Kc6 {[%emt 0:01:10]} 30. f5 {[%emt 0:00:29]} exf5 {[%emt 0:00:29]} 31. Rxh6+ {[%emt 0:01:05]} Rg6 {[%emt 0:00:01]} 32. cxd5+ {[%emt 0:10:26]} Kxd5 {[%emt 0:00:06]} 33. g5 {[%emt 0:01:52]} Rxg5 {[%emt 0:01:45]} 34. Rf6 {[%emt 0:00:19]} Rg3+ {[%emt 0:01:05]} 35. Ke2 {[%emt 0:00:10]} Rg7 {[%emt 0:00:19]} 36. Rd6+ {[%emt 0:00:43]} Kc4 {[%emt 0:00:01]} 37. Rd7 {[%emt 0:00:11]} f4 {[%emt 0:00:14]} 38. Kf1 {[%emt 0:00:29]} Bc6 {[%emt 0:00:37]} 39. Rc7 {[%emt 0:00:48]} Kd5 {[%emt 0:00:42]} 40. Re7 {[%emt 0:00:29]} Rg3 {[%emt 0:01:45]} 41. Rxf7 {[%emt 0:00:14]} Rf3+ 42. Kg1 {[%emt 0:00:43]} Ke6 {[%emt 0:00:32]} 43. Rf6+ {[%emt 0:00:51]} Kd7 {[%emt 0:00:02]} 44. Rd6+ {[%emt 0:01:03]} Ke8 {[%emt 0:00:06]} 45. d5 {[%emt 0:00:17]} Bb5 {[%emt 0:00:07]} 46. Rb6 {[%emt 0:00:47]} Ba6 {[%emt 0:00:06]} 47. Rf6 {[%emt 0:00:48]} Rg3+ {[%emt 0:00:38]} 48. Kf2 {[%emt 0:00:16]} Rg8 {[%emt 0:01:07]} 49. e6 {[%emt 0:00:31]} Bc4 {[%emt 0:00:22]} 50. d6 {[%emt 0:00:35]} Bb5 {[%emt 0:01:30]} 51. Rxf4 {[%emt 0:00:26]} Bc6 {[%emt 0:00:32]} 52. Ke3 {[%emt 0:00:11]} Kd8 {[%emt 0:00:55]} 53. Bb6+ {[%emt 0:00:36]} Ke8 {[%emt 0:00:08]} 54. Kd4 {[%emt 0:01:34]} Rg5 {[%emt 0:00:11]} 55. Bc5 {[%emt 0:00:37]} Rg8 {[%emt 0:01:01]} 56. Kc4 {[%emt 0:00:16]} Kd8 {[%emt 0:00:31]} 57. Kb4 {[%emt 0:00:15]} Rg5 {[%emt 0:00:21]} 58. Rf8+ {[%emt 0:00:17]} Be8 {[%emt 0:00:17]} 59. Bb6+ {[%emt 0:00:09]} 1-0